bitfinex/quotes_ETHUSD_20241215
["timestamp","ask_amount","ask_price","bid_price","bid_amount"]
[1734233230125,2.57817,3878.8,3878.4,0.06410116]
[1734233230481,2.57817,3878.8,3878.1,1.88394843]
[1734233230704,2.57817,3878.8,3878.2,2.75361202]
[1734233230881,2.57817,3878.8,3878.3,2.23372291]
[1734233231213,2.57817,3878.8,3878.4,0.06410116]
[1734233231612,2.57817,3878.8,3878.2,0.45578113]
[1734233231819,2.57817,3878.8,3878.5,0.06409774]
[1734233231989,2.57817,3878.8,3878.1,1.88394843]
[1734233232307,2.57817,3878.8,3878.2,2.23361078]
[1734233232511,2.57817,3878.8,3878.2,2.29771876]
[1734233232713,2.57817,3878.8,3878.3,0.89344431]
[1734233233179,2.57817,3878.8,3878.4,0.06410116]
[1734233233794,2.57817,3878.8,3878.1,2.33972956]
[1734233233981,2.57817,3878.8,3878.5,0.06410039]
[1734233234312,2.57817,3878.8,3878.6,0.06384433]
[1734233234691,2.57821,3878.7,3878.1,1.07304843]
[1734233234901,0.7554,3878.6,3878.2,2.29705233]
[1734233235102,0.7554,3878.6,3878.3,0.89327774]
[1734233235313,0.7554,3878.6,3877.9,2.67386283]
[1734233235314,0.7554,3878.6,3878.4,0.06385116]
[1734233235817,0.7554,3878.6,3878.0,1.07304843]
[1734233236118,0.7554,3878.6,3878.1,1.64992847]
[1734233236315,0.7554,3878.6,3878.2,0.89322096]
[1734233236780,0.7554,3878.6,3878.3,0.06385854]
[1734233237280,0.7554,3878.6,3878.4,0.06385513]
[1734233237483,0.19258174,3878.5,3878.1,0.75669113]
[1734233237701,0.7554,3878.6,3878.2,1.54639261]
[1734233237901,0.19256964,3878.5,3878.2,0.65326492]
[1734233238109,0.7554,3878.6,3878.2,0.65326492]
[1734233238422,0.19257594,3878.5,3878.2,0.65326492]
[1734233238597,0.7554,3878.6,3878.2,0.65326492]
[1734233238799,0.1925755,3878.5,3878.2,0.06386195]
[1734233238993,0.7554,3878.6,3878.2,0.06386195]
[1734233239206,0.19257543,3878.5,3878.2,0.06386195]
[1734233239421,2.57832,3878.5,3878.2,0.06386195]
[1734233239824,2.57832,3878.5,3877.8,4.89304843]
[1734233240119,2.57832,3878.5,3877.9,5.23284885]
[1734233240310,2.57832,3878.5,3878.0,2.23284885]
[1734233240815,2.57832,3878.5,3878.1,0.95696631]
[1734233240988,2.57832,3878.5,3878.1,0.06386404]
[1734233241387,2.57832,3878.5,3877.9,3.0]
[1734233241607,3.08540552,3878.5,3878.2,0.06386063]
[1734233241809,2.57832,3878.5,3877.9,4.91811139]
[1734233242010,2.57832,3878.5,3878.3,0.06385722]
[1734233242208,2.57832,3878.5,3877.9,5.99115982]
[1734233242416,2.57832,3878.5,3878.4,0.0638538]
[1734233242902,2.57832,3878.5,3877.9,5.99115982]
[1734233243224,2.57832,3878.5,3878.0,3.13857122]
[1734233243416,2.57832,3878.5,3878.1,2.23263052]
[1734233243617,0.7554,3878.6,3878.0,0.9059407]
[1734233243805,0.7554,3878.6,3878.2,0.06386063]
[1734233243995,0.7554,3878.6,3878.1,0.06386404]
[1734233244190,0.7554,3878.6,3878.3,0.06385722]
[1734233244425,0.7554,3878.6,3878.2,0.06386063]
[1734233244728,0.7554,3878.6,3878.3,0.06389795]
[1734233245099,0.7554,3878.6,3877.9,5.13733861]
[1734233245309,0.7554,3878.6,3878.0,2.29651865]
[1734233245510,0.7554,3878.6,3878.1,2.23261046]
[1734233245834,0.7554,3878.6,3878.2,0.06390136]
[1734233246067,3.33368,3878.6,3878.2,0.06390136]
[1734233246230,0.8204,3878.6,3878.2,0.06390136]
[1734233246419,0.8204,3878.3,3877.7,1.07304843]
[1734233246619,2.57859,3878.1,3877.8,0.89313657]
[1734233246807,0.8204,3878.3,3877.5,1.07304843]
[1734233247130,0.8204,3877.9,3877.6,2.23289248]
[1734233247335,0.8204,3877.9,3877.7,0.89315699]
[1734233247637,0.8204,3877.9,3877.4,1.07304843]
[1734233247799,0.8204,3877.9,3877.5,0.89306842]
[1734233247993,0.8204,3877.9,3877.6,1.33960263]
[1734233248193,0.8204,3877.9,3877.7,0.89306842]
[1734233248417,0.8204,3877.9,3877.4,1.07304843]
[1734233248618,0.8204,3877.9,3877.5,0.89302056]
[1734233248834,0.8204,3877.9,3877.6,1.33953085]
[1734233249033,0.8204,3877.9,3877.7,0.89302056]
[1734233249299,0.8204,3877.9,3877.4,1.07304843]
[1734233249514,0.8204,3877.9,3877.5,0.89296185]
[1734233249732,0.8204,3877.9,3877.6,1.33944278]
[1734233249932,0.8204,3877.9,3877.7,0.89296185]
[1734233250135,0.8204,3877.9,3877.4,2.80452942]
[1734233250353,0.8204,3877.9,3877.5,2.23234243]
[1734233250558,2.57881,3877.8,3877.2,1.07304843]
[1734233250698,2.57881,3877.8,3877.3,0.89301405]
[1734233250909,2.57881,3877.8,3877.0,1.07304843]
[1734233251224,2.57881,3877.8,3876.9,5.14883259]
[1734233251424,2.57881,3877.8,3877.0,2.9084345]
[1734233251611,2.57881,3877.8,3877.1,2.23259398]
[1734233251934,2.57881,3877.8,3877.2,0.89303759]
[1734233252102,2.57881,3877.8,3877.0,0.67584052]
[1734233252302,2.57881,3877.8,3877.1,2.23179417]
[1734233252506,2.57881,3877.8,3877.2,0.95665317]
[1734233252840,2.57881,3877.8,3877.2,0.0639355]
[1734233253358,2.57881,3877.8,3876.9,2.91623861]
[1734233253359,0.8204,3877.8,3877.3,0.06393208]
[1734233253960,0.8204,3877.8,3876.9,1.84319018]
[1734233254158,0.8204,3877.8,3877.4,0.06392867]
[1734233254305,2.57888,3877.7,3876.9,1.84319018]
[1734233254500,1.06429018,3878.1,3877.0,2.29523422]
[1734233254707,1.06429018,3878.1,3877.0,0.06394232]
[1734233254708,0.8204,3877.4,3877.0,0.06394232]
[1734233254930,0.8204,3877.4,3876.7,2.13733861]
[1734233255136,0.8204,3877.4,3877.1,0.06393891]
[1734233255344,0.8204,3877.4,3876.7,2.13733861]
[1734233255543,0.8204,3877.4,3877.2,0.0639355]
[1734233255761,0.8204,3877.4,3876.7,2.13733861]
[1734233255963,0.8204,3877.4,3877.3,0.06393208]
[1734233256166,0.8204,3877.4,3876.7,2.13733861]
[1734233256309,0.8204,3877.4,3877.3,0.06443248]
[1734233256509,0.8204,3877.4,3876.7,2.13733861]
[1734233256810,0.8204,3877.4,3876.8,2.29520563]
[1734233257004,0.8204,3877.4,3876.9,0.89230243]
[1734233257353,0.8204,3877.4,3877.0,0.06444272]
[1734233257354,2.57918,3877.2,3877.0,0.06444272]
[1734233257543,1.34034934,3877.4,3877.0,0.06444272]
[1734233257846,3.91941934,3877.4,3876.5,2.13733861]
[1734233258005,3.91941934,3877.4,3876.6,2.23048973]
[1734233258212,3.91941934,3877.4,3876.7,0.89219589]
[1734233258542,2.57912,3877.3,3876.7,0.06445297]
[1734233259048,2.57912,3877.3,3876.5,1.06429018]
[1734233259209,2.57912,3877.3,3876.8,0.06444823]
[1734233259405,2.97106693,3877.3,3876.4,0.7789]
[1734233259606,0.8204,3877.2,3876.9,0.06444481]
[1734233259806,0.8204,3877.2,3876.4,0.7789]
[1734233260039,0.8204,3877.2,3877.0,0.0644414]
[1734233260246,0.8204,3877.2,3876.4,0.7789]
[1734233260421,0.8204,3877.2,3877.1,0.06443799]
[1734233260622,1.25154163,3877.2,3876.4,0.7789]
[1734233260860,0.8204,3877.2,3876.4,0.7789]
[1734233261058,0.8204,3877.2,3876.5,0.06445848]
[1734233261484,3.39959,3877.2,3876.5,1.12874866]
[1734233262373,0.8204,3876.7,3876.5,0.06445848]
[1734233262549,0.339985,3876.6,3876.5,0.06445848]
[1734233262868,0.8204,3876.7,3876.0,1.06429018]
[1734233263374,0.8204,3876.7,3876.1,0.06447214]
[1734233264997,0.8204,3876.7,3876.2,1.06429018]
[1734233265525,0.8204,3876.7,3876.3,0.06446531]
[1734233265825,2.57929,3877.1,3876.3,0.85626531]
[1734233265826,0.5285103,3876.9,3876.3,0.85626531]
[1734233268721,0.5285103,3876.9,3876.3,0.06446531]
[1734233269822,0.5285103,3876.9,3876.0,1.85609018]
[1734233270325,0.5285103,3876.9,3876.1,0.06482141]
[1734233272191,3.1078903,3876.9,3876.1,0.06482141]
[1734233272451,2.57946,3876.8,3876.1,0.06482141]
[1734233275937,2.57964,3876.6,3876.1,0.06482141]
[1734233276110,0.7943,3876.4,3876.1,0.06482141]
[1734233276331,0.7943,3876.4,3875.6,1.06429018]
[1734233276632,0.7943,3876.4,3875.7,0.06603967]
[1734233276832,2.57978,3876.3,3875.7,0.06603967]
[1734233277753,2.57987,3876.2,3875.7,0.06603967]
[1734233278966,0.7943,3876.4,3875.7,0.06603967]
[1734233279210,2.57952,3876.7,3876.0,1.06429018]
[1734233279336,0.7943,3877.0,3875.8,1.85609018]
[1734233279535,3.64357018,3877.1,3875.9,0.06624247]
[1734233279536,0.7943,3876.5,3875.9,0.06624247]
[1734233279854,0.7943,3876.5,3875.8,1.85609018]
[1734233280058,0.51047518,3876.4,3876.0,1.06429018]
[1734233280431,0.51047518,3876.4,3876.1,0.06623563]
[1734233280738,0.51047518,3876.4,3876.1,0.85803563]
[1734233282938,0.7943,3877.1,3876.2,1.06429018]
[1734233283136,0.7943,3877.1,3876.4,1.06429018]
[1734233283340,0.7943,3877.1,3876.5,0.06654803]
[1734233284288,2.57931,3877.0,3876.5,0.06654803]
[1734233284661,0.51883263,3876.8,3876.5,0.06654803]
[1734233285064,0.51883263,3876.8,3876.6,0.7918]
[1734233285301,0.51883263,3876.8,3876.7,0.0665179]
[1734233288448,0.51883263,3876.8,3876.4,1.06429018]
[1734233288956,0.51883263,3876.8,3876.5,0.06633258]
[1734233290491,0.51883263,3876.8,3876.6,0.7626]
[1734233290790,0.51883263,3876.8,3876.7,0.06637497]
[1734233294710,0.51572993,3876.8,3876.7,0.06637497]
[1734233295726,0.51572993,3876.8,3876.4,1.06429018]
[1734233295914,0.51572993,3876.8,3876.5,0.06619998]
[1734233298715,0.51572993,3876.8,3876.3,0.7626]
[1734233298946,0.51572993,3876.8,3876.4,0.0662034]
[1734233300123,0.19247488,3876.7,3876.4,0.0662034]
[1734233300327,0.51572993,3876.8,3876.4,0.3628176]
[1734233300528,0.19247085,3876.7,3876.4,0.3628176]
[1734233300832,0.51572993,3876.8,3876.4,0.3628176]
[1734233301343,0.51572993,3876.8,3876.5,0.89351633]
[1734233301547,0.51572993,3876.8,3876.6,0.06619524]
[1734233301722,0.51572993,3876.8,3876.5,1.06429018]
[1734233301917,0.51572993,3876.8,3876.6,0.06619657]
[1734233302124,0.51572993,3876.8,3876.5,1.06429018]
[1734233302441,0.51572993,3876.8,3876.6,0.06619657]
[1734233302821,0.51572993,3876.8,3876.5,1.06429018]
[1734233303022,0.51572993,3876.8,3876.7,0.06619315]
[1734233303223,0.70819258,3876.8,3876.6,0.06619657]
[1734233303424,0.51572993,3876.8,3876.7,0.06619315]
[1734233303659,0.70818847,3876.8,3876.7,0.06619315]
[1734233304120,0.70818847,3876.8,3876.5,1.06429018]
[1734233304324,0.51572993,3876.8,3876.6,0.0662839]
[1734233304549,0.51572993,3876.8,3876.5,1.06429018]
[1734233304864,0.51572993,3876.8,3876.6,0.0662839]
[1734233305161,0.51572993,3876.8,3876.5,1.06429018]
[1734233305462,0.51572993,3876.8,3876.6,0.96029527]
[1734233305628,0.19245169,3876.7,3876.6,0.0662839]
[1734233305829,0.51572993,3876.8,3876.6,0.96029428]
[1734233306050,0.51572993,3876.8,3876.5,1.06429018]
[1734233306256,0.51572993,3876.8,3876.7,0.06628049]
[1734233306477,0.51572993,3876.8,3876.6,0.0662839]
[1734233306675,0.51572993,3876.8,3876.7,0.06628049]
[1734233306848,0.51572993,3876.8,3876.3,2.89993861]
[1734233307062,0.51572993,3876.8,3876.4,2.23530658]
[1734233307250,0.51572993,3876.8,3876.5,2.23540646]
[1734233307564,0.51572993,3876.8,3876.6,0.0662839]
[1734233307882,0.51572993,3876.8,3876.3,2.89993861]
[1734233308063,0.51572993,3876.8,3876.4,2.23546166]
[1734233308255,0.51572993,3876.8,3876.5,2.23546166]
[1734233308584,0.51572993,3876.8,3876.6,0.0662839]
[1734233308987,0.51572993,3876.8,3876.3,2.89993861]
[1734233309184,0.51572993,3876.8,3876.7,0.06628049]
[1734233309484,0.51572993,3876.8,3876.3,2.89993861]
[1734233309671,0.51572993,3876.8,3876.7,0.06628049]
[1734233310189,0.51572993,3876.8,3876.3,2.89993861]
[1734233310384,0.51572993,3876.8,3876.7,0.06628049]
[1734233310591,0.51572993,3876.8,3876.3,2.89993861]
[1734233310748,0.51572993,3876.8,3876.7,0.06628049]
[1734233310948,0.51572993,3876.8,3876.3,2.89993861]
[1734233311155,0.51572993,3876.8,3876.4,2.30189433]
[1734233311355,0.51572993,3876.8,3876.5,2.2356036]
[1734233311555,0.51572993,3876.8,3876.6,0.96052534]
[1734233311755,0.51572993,3876.8,3876.6,0.0662839]
[1734233311990,0.51572993,3876.8,3876.3,2.89993861]
[1734233312190,0.51572993,3876.8,3876.7,0.06628049]
[1734233312378,0.51572993,3876.8,3876.3,2.89993861]
[1734233312576,0.51572993,3876.8,3876.7,0.06628049]
[1734233312780,0.51572993,3876.8,3876.3,2.89993861]
[1734233312986,0.51572993,3876.8,3876.7,0.06628049]
[1734233313160,0.51572993,3876.8,3876.3,2.89993861]
[1734233313361,0.51572993,3876.8,3876.4,2.75288267]
[1734233313594,0.51572993,3876.8,3876.5,2.23564193]
[1734233313905,0.51572993,3876.8,3876.6,0.96054067]
[1734233314213,0.51572993,3876.8,3876.6,0.0662839]
[1734233314527,0.51572993,3876.8,3876.3,2.89993861]
[1734233314674,0.51572993,3876.8,3876.4,2.75291488]
[1734233314874,0.51572993,3876.8,3876.5,2.23567302]
[1734233315106,0.51572993,3876.8,3876.6,0.96055311]
[1734233315278,0.51572993,3876.8,3876.6,0.0662839]
[1734233315472,0.51572993,3876.8,3876.3,2.89993861]
[1734233315667,0.51572993,3876.8,3876.4,2.75288982]
[1734233315873,0.51572993,3876.8,3876.5,2.23564796]
[1734233316074,0.51572993,3876.8,3876.6,0.96054308]
[1734233316314,0.51572993,3876.8,3876.6,0.0662839]
[1734233316512,0.51572993,3876.8,3876.3,2.89993861]
[1734233316707,0.51572993,3876.8,3876.4,2.30208128]
[1734233316907,0.51572993,3876.8,3876.5,2.23569022]
[1734233317108,0.51572993,3876.8,3876.6,0.0663829]
[1734233317309,0.51572993,3876.8,3876.3,2.89993861]
[1734233317485,0.51572993,3876.8,3876.4,2.30209703]
[1734233317689,0.51572993,3876.8,3876.5,0.89428292]
[1734233317889,0.51572993,3876.8,3876.4,0.06638973]
[1734233318100,0.51572993,3876.8,3876.5,0.96066954]
[1734233318302,0.51572993,3876.8,3876.5,0.06638632]
[1734233318479,0.51572993,3876.8,3876.3,2.89993861]
[1734233318677,0.51572993,3876.8,3876.4,2.30209735]
[1734233318878,0.51572993,3876.8,3876.5,0.89428305]
[1734233319097,0.51572993,3876.8,3876.4,0.06638973]
[1734233319297,0.51572993,3876.8,3876.5,0.96068449]
[1734233319504,0.51572993,3876.8,3876.5,0.06638632]
[1734233319710,0.51572993,3876.8,3876.3,2.89993861]
[1734233320014,0.51572993,3876.8,3876.4,2.30210036]
[1734233320212,0.51572993,3876.8,3876.5,2.23571063]
[1734233320418,0.51572993,3876.8,3876.4,0.06638973]
[1734233320711,0.51572993,3876.8,3876.5,2.30211159]
[1734233320879,0.51572993,3876.8,3876.5,0.06638632]
[1734233321081,0.51572993,3876.8,3876.3,2.89993861]
[1734233321310,0.51572993,3876.8,3876.4,2.3021646]
[1734233321544,0.51572993,3876.8,3876.5,0.89430995]
[1734233321718,0.51572993,3876.8,3876.6,0.0663829]
[1734233321903,3.09518993,3876.8,3876.3,2.89993861]
[1734233322112,3.09518993,3876.8,3876.4,2.30214458]
[1734233322312,3.09518993,3876.8,3876.5,2.23603455]
[1734233322536,3.09518993,3876.8,3876.6,0.0663829]
[1734233322737,3.09518993,3876.8,3876.3,2.89993861]
[1734233322940,3.09518993,3876.8,3876.4,2.30241963]
[1734233323110,0.51572993,3876.8,3876.5,2.2360299]
[1734233323320,3.34051,3876.7,3876.6,0.0663829]
[1734233323539,2.5798,3876.3,3876.1,1.07304843]
[1734233323729,2.5798,3876.3,3876.2,2.30305727]
[1734233324031,2.5798,3876.3,3876.2,0.96114121]
[1734233324214,2.5798,3876.3,3876.2,2.30327322]
[1734233326618,2.5798,3876.3,3876.2,2.30345723]
[1734233330145,2.5798,3876.3,3876.2,0.96130119]
[1734233330557,2.5798,3876.3,3876.2,0.96123947]
[1734233330752,2.5798,3876.3,3876.2,0.0665305]
[1734233330944,2.5798,3876.3,3876.0,1.06429018]
[1734233331145,2.5798,3876.3,3876.1,2.30349359]
[1734233331459,2.5798,3876.3,3876.1,0.06670278]
[1734233331853,3.3601,3876.3,3876.1,0.06670278]
[1734233332243,2.57992,3876.1,3875.9,1.06429018]
[1734233332441,2.57992,3876.1,3876.0,2.23646528]
[1734233333477,2.57977,3876.4,3876.0,2.75482567]
[1734233333773,2.57978,3876.3,3876.1,0.89458611]
[1734233333964,2.57978,3876.3,3875.9,2.13733861]
[1734233334284,2.57986,3876.2,3876.0,0.89449886]
[1734233334434,2.57992,3876.1,3875.9,1.06429018]
[1734233334634,2.57992,3876.1,3876.0,0.89443953]
[1734233335269,0.7803,3876.3,3875.6,2.13733861]
[1734233335472,2.58013,3875.8,3875.7,2.23599407]
[1734233335637,2.58011,3875.8,3875.7,0.89442883]
[1734233335838,2.58024,3875.6,3875.3,1.07304843]
[1734233336055,2.58024,3875.6,3875.4,2.23611123]
[1734233336274,0.7803,3876.0,3875.5,0.89444449]
[1734233336521,2.58009,3875.9,3875.6,1.95873467]
[1734233336663,2.58009,3875.9,3875.7,0.89444449]
[1734233337368,2.58011,3875.8,3875.6,1.06429018]
[1734233338079,2.57997,3876.1,3875.7,2.23507658]
[1734233338399,2.57997,3876.1,3875.8,1.95823001]
[1734233338608,2.57997,3876.1,3875.6,1.06429018]
[1734233338900,2.57997,3876.1,3875.7,0.89395325]
[1734233339106,0.50380198,3876.2,3875.7,0.89395325]
[1734233339289,0.50380198,3876.2,3875.5,0.8264]
[1734233339290,2.57999,3876.0,3875.5,1.89069018]
[1734233339490,2.57999,3876.0,3875.6,0.89387957]
[1734233340181,2.57999,3876.0,3875.5,1.89069018]
[1734233340390,2.58005,3875.9,3875.6,0.89387771]
[1734233341076,0.50380198,3876.2,3875.6,0.89387771]
[1734233341279,2.57992,3876.1,3875.6,0.89387771]
[1734233342274,2.57992,3876.1,3875.7,0.06708345]
[1734233342999,2.57992,3876.1,3875.5,1.89069018]
[1734233343303,2.57992,3876.1,3875.8,0.06708003]
[1734233343520,2.57992,3876.1,3875.5,1.89069018]
[1734233343723,2.57992,3876.1,3875.9,0.06707661]
[1734233344003,2.57992,3876.1,3875.5,1.89069018]
[1734233344175,2.57992,3876.1,3876.0,0.0670732]
[1734233344463,2.57992,3876.1,3875.7,1.06429018]
[1734233344667,2.57992,3876.1,3876.0,0.0670732]
[1734233344813,2.57992,3876.1,3875.7,1.06429018]
[1734233345010,2.57992,3876.1,3876.0,0.0670732]
[1734233345376,2.9663222,3876.1,3875.5,1.89069018]
[1734233345529,2.57992,3876.1,3876.0,0.0670732]
[1734233345871,2.58004,3875.9,3875.5,1.06429018]
[1734233346006,2.58004,3875.9,3875.2,1.89944843]
[1734233346210,0.50380198,3876.2,3875.0,1.86763665]
[1734233346211,2.58017,3875.7,3875.6,0.06708686]
[1734233346519,2.58028,3875.6,3875.0,0.258064]
[1734233346710,2.58031,3875.5,3875.1,0.89353304]
[1734233346909,3.40061,3875.5,3875.1,0.89353304]
[1734233347660,3.40061,3875.5,3875.0,1.32235418]
[1734233347855,2.57997,3876.0,3875.0,1.32235418]
[1734233347856,2.58007,3875.9,3875.4,1.85979018]
[1734233350758,2.58007,3875.9,3875.6,1.06429018]
[1734233350961,3.08368198,3876.2,3875.8,1.06429018]
[1734233351145,3.08368198,3876.2,3875.9,0.7955]
[1734233351347,0.50380198,3876.2,3876.0,1.2502692]
[1734233353628,0.50380198,3876.2,3876.1,0.7955]
[1734233355264,0.50380198,3876.2,3876.1,1.68860011]
[1734233355462,0.50380198,3876.2,3876.1,0.7955]
[1734233355970,0.50380198,3876.2,3876.1,1.68861582]
[1734233356173,0.50380198,3876.2,3876.1,2.08980917]
[1734233357403,0.50380198,3876.2,3876.1,2.15746728]
[1734233360292,0.50380198,3876.2,3876.1,3.49739964]
[1734233360476,0.50380198,3876.2,3876.1,2.15746728]
[1734233360679,0.50380198,3876.2,3876.1,1.26435146]
[1734233363498,0.50380198,3876.2,3876.1,0.06765811]
[1734233363998,0.50380198,3876.2,3876.1,0.06701865]
[1734233364175,0.50380198,3876.2,3875.9,1.06429018]
[1734233364376,0.50380198,3876.2,3876.0,0.06702206]
[1734233366716,0.50380198,3876.2,3876.1,0.89367901]
[1734233367085,0.50380198,3876.2,3876.1,0.96066853]
[1734233368691,0.50380198,3876.2,3876.1,0.96078109]
[1734233369478,0.50380198,3876.2,3876.1,0.06698952]
[1734233369899,0.50380198,3876.2,3875.9,1.06429018]
[1734233370106,0.50380198,3876.2,3876.1,0.06698952]
[1734233370309,0.50380198,3876.2,3876.1,0.89385865]
[1734233370492,0.50380198,3876.2,3876.1,0.96084817]
[1734233371120,0.50380198,3876.2,3876.1,0.06698952]
[1734233371413,0.50380198,3876.2,3876.1,0.06708852]
[1734233371619,0.50380198,3876.2,3875.9,1.06429018]
[1734233371784,0.50380198,3876.2,3876.0,2.30178574]
[1734233371985,0.50380198,3876.2,3876.0,0.06709194]
[1734233373106,0.50380198,3876.2,3876.1,1.06429018]
[1734233373414,4.18533733,3877.1,3876.1,1.06429018]
[1734233373415,0.8275,3877.2,3876.2,0.8284]
[1734233373603,0.19230211,3877.1,3877.0,1.06429018]
[1734233373801,0.19230211,3877.1,3877.0,1.13123014]
[1734233374412,2.77139211,3877.4,3877.0,0.06693996]
[1734233374613,0.19230211,3877.3,3877.0,0.06693996]
[1734233374919,0.19230211,3877.2,3877.0,0.06693996]
[1734233375124,0.19230211,3877.1,3877.0,0.06693996]
[1734233375324,0.19230211,3877.3,3877.0,0.06693996]
[1734233375522,0.19230211,3877.2,3877.0,0.06693996]
[1734233375817,2.57909,3877.4,3877.0,0.06693996]
[1734233375818,0.19230211,3877.3,3877.0,0.06693996]
[1734233376025,0.19230211,3877.2,3877.0,0.06693996]
[1734233376208,0.19230211,3877.3,3877.0,0.06693996]
[1734233376411,0.19230211,3877.2,3877.0,0.06693996]
[1734233376710,0.19230211,3877.3,3877.0,0.06693996]
[1734233376910,0.19230211,3877.2,3877.0,0.06693996]
[1734233377110,1.34871833,3877.5,3877.0,0.06693996]
[1734233377111,2.57912,3877.3,3877.0,0.06693996]
[1734233377313,0.19230211,3877.2,3877.0,0.06693996]
[1734233377532,2.57912,3877.3,3877.0,0.06693996]
[1734233377737,0.19225687,3877.2,3877.0,0.06693996]
[1734233378030,2.57912,3877.3,3877.0,0.06693996]
[1734233378196,0.19225675,3877.2,3877.0,0.06693996]
[1734233378391,2.57912,3877.3,3877.0,0.06693996]
[1734233378607,0.19226646,3877.2,3877.0,0.06693996]
[1734233378827,2.57912,3877.3,3877.0,0.06693996]
[1734233379123,0.19226682,3877.2,3877.0,0.06693996]
[1734233379335,0.19224,3877.2,3877.0,0.06693996]
[1734233379627,0.19224,3877.1,3877.0,0.06693996]
[1734233379831,0.19224,3877.2,3877.0,0.06693996]
[1734233380004,0.19224,3877.1,3877.0,0.06693996]
[1734233380203,0.19224,3877.2,3877.0,0.06693996]
[1734233380422,0.19224,3877.1,3877.0,0.06693996]
[1734233380730,0.19224,3877.2,3877.0,0.06693996]
[1734233380923,0.19224,3877.1,3877.0,0.06693996]
[1734233381247,0.19224,3877.2,3877.0,0.06693996]
[1734233381403,0.19224,3877.1,3877.0,0.06693996]
[1734233381593,2.57912,3877.3,3877.0,0.06693996]
[1734233381911,0.19229553,3877.2,3877.0,0.06693996]
[1734233382629,2.57912,3877.3,3877.0,0.06693996]
[1734233382791,0.19228126,3877.2,3877.0,0.06693996]
[1734233382990,0.19228126,3877.1,3877.0,0.06693996]
[1734233383191,0.19228126,3877.2,3877.0,0.06693996]
[1734233383393,0.19228126,3877.1,3877.0,0.06693996]
[1734233383590,0.19228126,3877.2,3877.0,0.06693996]
[1734233383792,0.19228126,3877.1,3877.0,0.06693996]
[1734233384025,0.19228126,3877.2,3877.0,0.06693996]
[1734233384206,0.19228126,3877.1,3877.0,0.06693996]
[1734233384402,0.19228126,3877.2,3877.0,0.06693996]
[1734233384619,0.19228126,3877.1,3877.0,0.06693996]
[1734233384814,0.19228126,3877.2,3877.0,0.06693996]
[1734233384994,2.57912,3877.3,3877.0,0.06693996]
[1734233385195,0.19225964,3877.2,3877.0,0.06693996]
[1734233385938,0.19225964,3877.4,3877.0,0.06693996]
[1734233386102,0.19225964,3877.3,3877.0,0.06693996]
[1734233386296,0.19225964,3877.2,3877.0,0.06693996]
[1734233386498,0.19225964,3877.4,3877.0,0.06693996]
[1734233386700,0.19225964,3877.3,3877.0,0.06693996]
[1734233386901,0.19225964,3877.2,3877.0,0.06693996]
[1734233387101,0.19225964,3877.4,3877.0,1.13123014]
[1734233387302,0.19225964,3877.3,3877.0,1.13123014]
[1734233387533,0.19225964,3877.4,3877.0,1.13123014]
[1734233387834,0.19225964,3877.3,3877.0,1.13123014]
[1734233388035,0.19225964,3877.4,3877.0,1.13123014]
[1734233388217,0.19225964,3877.3,3877.0,1.13123014]
[1734233388414,0.19225964,3877.4,3877.0,1.13123014]
[1734233388732,0.19225964,3877.3,3877.0,1.13123014]
[1734233388936,0.19225964,3877.4,3877.0,1.13123014]
[1734233389099,0.19225964,3877.3,3877.0,1.13123014]
[1734233389302,0.19225964,3877.4,3877.0,1.13123014]
[1734233389513,0.19225964,3877.3,3877.0,1.13123014]
[1734233389715,0.19225964,3877.4,3877.0,0.06693996]
[1734233389915,0.19225964,3877.3,3877.0,0.06693996]
[1734233390207,0.19225964,3877.4,3877.0,0.06693996]
[1734233390431,0.19225964,3877.3,3877.0,0.06693996]
[1734233390633,0.19225964,3877.4,3877.0,0.06693996]
[1734233390808,0.19225964,3877.3,3877.0,0.06693996]
[1734233391007,0.19225964,3877.4,3877.0,0.06693996]
[1734233391212,0.19218739,3877.3,3877.0,0.06693996]
[1734233391534,1.34871833,3877.5,3877.0,0.06693996]
[1734233391535,2.77137739,3877.2,3877.0,0.06693996]
[1734233391707,3.92772833,3877.5,3877.0,0.06693996]
[1734233391902,0.19218885,3877.4,3877.0,0.06693996]
[1734233392106,0.19218885,3877.3,3876.9,0.8284]
[1734233392434,0.19218885,3877.2,3877.0,0.06614797]
[1734233392640,0.19218885,3877.4,3877.0,0.06614797]
[1734233392845,0.19218885,3877.3,3877.0,0.06614797]
[1734233393054,0.19218885,3877.2,3877.0,0.06614797]
[1734233393349,0.19218885,3877.4,3877.0,0.06614797]
[1734233393550,0.19218885,3877.3,3877.0,0.06614797]
[1734233393745,0.19218885,3877.2,3877.0,0.06614797]
[1734233393944,2.77123885,3877.4,3877.0,0.06614797]
[1734233394262,0.19218885,3877.3,3877.0,0.06614797]
[1734233394549,0.19218885,3877.2,3877.0,0.06614797]
[1734233394854,0.19218885,3877.3,3877.0,0.06614797]
[1734233395013,0.19218885,3877.2,3877.0,0.06614797]
[1734233395214,0.19218885,3877.3,3877.0,0.06614797]
[1734233395514,0.19218885,3877.2,3877.0,0.06614797]
[1734233395727,2.57905,3877.4,3877.0,0.06614797]
[1734233395949,0.19223221,3877.3,3876.9,0.8284]
[1734233396250,0.19223221,3877.2,3876.9,0.8284]
[1734233396413,2.57905,3877.4,3876.9,0.8284]
[1734233396629,0.19226031,3877.3,3876.9,0.8284]
[1734233396939,0.19226031,3877.2,3877.0,0.06406228]
[1734233397139,2.57905,3877.4,3877.0,0.06406228]
[1734233397673,0.19229684,3877.3,3877.0,0.06406228]
[1734233397830,0.19229684,3877.2,3877.0,0.06406228]
[1734233398030,2.57905,3877.4,3877.0,0.06406228]
[1734233398233,0.19230023,3877.3,3877.2,1.06429018]
[1734233398566,2.57889,3877.7,3877.2,1.06429018]
[1734233398567,0.19230023,3877.6,3877.2,1.92264298]
[1734233398743,0.19230023,3877.5,3877.2,1.92264298]
[1734233398929,2.57872,3877.9,3877.2,1.92264298]
[1734233399130,0.1923417,3877.8,3877.2,1.92264298]
[1734233399366,0.1923417,3877.7,3877.2,2.1344748]
[1734233399564,2.57879,3877.8,3877.2,2.1344748]
[1734233399565,0.1923417,3877.6,3877.2,2.1344748]
[1734233399736,0.1923417,3877.5,3877.2,2.1344748]
[1734233400073,0.51409664,3877.7,3877.2,2.1344748]
[1734233400257,0.19236006,3877.6,3877.2,1.92264298]
[1734233400454,0.19240532,3877.5,3877.2,1.92264298]
[1734233400766,0.19240532,3877.4,3877.2,1.92264298]
[1734233400931,0.19240529,3877.4,3877.2,1.92264298]
[1734233401277,0.51409664,3877.7,3877.2,1.92264298]
[1734233401433,0.19247138,3877.6,3877.2,1.92264298]
[1734233402075,0.19247138,3877.5,3877.2,1.92264298]
[1734233402377,0.19247138,3877.4,3877.3,0.21183182]
[1734233405592,3.09297664,3877.7,3877.3,0.21183182]